{"text_format":"1","workbook":"xlsx","n_sheets":3,"sheets":["Munka1","Munka2","Munka3"],"not_rendered":{"charts":0,"images":0,"macros":0,"external_links":0,"defined_names":0,"comments":0,"pivot_tables":0},"unopened":[],"bounds":{"document_bytes":16777216,"sheet_cells":100000,"rows_first":2000,"rows_last":500,"rows_between":2000,"halvings":0,"cell_chars":16384,"cell_head_chars":4096},"cells_cut":0,"cells_raw":0,"read":"whole","date_system":"1900"}

{"sheet":"Munka1","index":0,"n_rows":56,"n_cols":12,"rows_kept":56,"cut":false,"hidden":false,"merged":[]}
[null,null,null,null,null,null,null,"A 3/2012.(IV.26.)rend.3.§ (2) bek.-el"]
[null,null,null,"K I M U T A T Á S ",null,null,null,null,null,null,null," 2.sz.melléklet"]
[]
[null,"2011.évi beszámoló működési és felhalmozási kiadásairól"]
[]
[null,null,null,null,null,null,null,null,null,null,null,"ezer Ft-ban"]
[null,null,"Müködési kiadás",null,"      átadott",null,"Szociá-","Beru-","Finanszí-",null,"Kiadások","ebből"]
["CÍM száma, megnevezése","személyi","munkaad.","dologi","   pénzeszközök",null,"lis","házás","rozás",null,"össze-","felhal-"]
[null,"jellegü ","járulékok",null,"műk.","felh.","jellegű","felújítás","műk","felh.","sen","mozási"]
["I. Nyírkarász K.Önkorm.Polgárm."]
["    Hiv.és hozzátart. Alcímek"]
["1. Önkormányzat igazgatási tev.",23272,7301,39509,null,null,412,null,null,null,{"$f":"SUM(B12:J12)","v":70494}]
["2. Önkormányzatok pü. igazgatása"]
["4.Város-és községg.másh.nem sor.",7283,1841,13439,null,null,null,null,162,null,{"$f":"SUM(B14:J14)","v":22725}]
["6.Települési hull.kezelése,ártalm.",1124,310,1032,null,null,null,null,31226,null,{"$f":"SUM(B15:J15)","v":33692}]
["8.Közvilágítás",null,null,715,null,null,null,null,null,null,{"$f":"SUM(D16:J16)","v":715}]
["10.Család-és nővédelmi eü.gond.",2190,592,815,null,null,null,null,null,null,{"$f":"SUM(B17:J17)","v":3597}]
["11.Ifjúság-és eü gond.",454,519,null,null,null,1686,null,null,null,{"$f":"SUM(B18:J18)","v":2659}]
["12.Rendszeres szoc.segély",null,418,null,null,null,37799,null,null,null,{"$f":"SUM(C19:J19)","v":38217}]
["13.Időskorúak járadéka",null,null,null,null,null,1655,null,null,null,{"$f":"SUM(G20:J20)","v":1655}]
["14.Lakásfenntart.támog.norm.alap",null,null,null,null,null,11914,null,null,null,{"$f":"SUM(G21:J21)","v":11914}]
["15.Ápolási díj alanyi jogon",4721,null,null,null,null,22661,null,null,null,{"$f":"SUM(B22:J22)","v":27382}]
["16.Ápolási díj méltányossági "]
["17.Rendsz.gyemekvédelmi ellátás",null,null,null,null,null,4855,null,null,null,{"$f":"SUM(G24:J24)","v":4855}]
["19.Óvodáztatási támogatás",null,null,null,null,null,350,null,null,null,{"$f":"SUM(G25:J25)","v":350}]
["22.Rendkivüli gyermekvédelmi tám.",null,null,null,null,null,18,null,null,null,{"$f":"SUM(G26:J26)","v":18}]
["23.Mozgáskorlátozottak közl.tám.",null,null,null,null,null,1285,null,null,null,{"$f":"SUM(G27:J27)","v":1285}]
["24.Egyéb önk.eseti pénzb.ellátás",null,null,null,null,null,631,null,null,null,{"$f":"SUM(G28:J28)","v":631}]
["25.Közgyógyellátás"]
["27.Önkorm.által nyújtott lakástám."]
["29.Közcélú foglalkoztatás",10299,1473,null,null,null,null,null,null,null,{"$f":"SUM(B31:J31)","v":11772}]
["30.Közhasznú foglalkoztatás",12882,2257,null,null,null,null,null,null,null,{"$f":"SUM(B32:J32)","v":15139}]
["32.Máshová nem sor.egyéb sporttám."]
["33.Köztemető fenntartási feladat",1442,383,177,null,null,null,null,null,null,{"$f":"SUM(B34:J34)","v":2002}]
["34.Nem lakóingatlan bérbeadása",null,null,2461,null,null,null,null,null,null,{"$f":"SUM(C35:J35)","v":2461}]
["35.OGY.képv.választ.kapcs.tev."]
["36.Önkorm.képvis.választ.kapcs.tev."]
["45.Szennyvíz kezelése"]
["46.Finanszírozási műveletek"]
["II. Váci Mihály Általános Iskola"]
["   Óvoda és hozzátart. Alcímek"]
["1. Óvodai intézményi étkeztetés",1093,296,3657,null,null,null,null,null,null,{"$f":"SUM(B42:J42)","v":5046}]
["2. Iskolai intézményi étkeztetés"]
["4. Óvodai nevelés,ellátás",27484,7445,3204,null,null,null,null,null,null,{"$f":"SUM(B44:J44)","v":38133}]
["6.Ált.isk.tanulók  nevelése(1-4évf.)",32249,8453,1073,null,null,null,null,null,null,{"$f":"SUM(B45:J45)","v":41775}]
["8.Ált.isk.tanulók  nevelése(5-8évf.)",78992,23557,14138,null,null,null,null,null,null,{"$f":"SUM(B46:J46)","v":116687}]
["10.Napközi otthoni nevelés",5185,1400,811,null,null,null,null,null,null,{"$f":"SUM(B47:J47)","v":7396}]
["III. Idősek Otthona"]
["   és hozzátart.alcímek"]
["1.Időskorúak tartós bentl.szoc.ell.",20166,5447,18379,null,null,null,null,289,null,{"$f":"SUM(B50:J50)","v":44281}]
["2.Demens betegek bentl.ellátása",6510,1757,811,null,null,null,null,null,null,{"$f":"SUM(B51:J51)","v":9078}]
["3. Idősek nappali ellátása",1451,392,null,null,null,null,null,null,null,{"$f":"SUM(B52:J52)","v":1843}]
["4.Szociális étkeztetés",767,207,1997,null,null,null,null,null,null,{"$f":"SUM(B53:J53)","v":2971}]
["Továbbadási célú kiadás"]
["Függő kiadás"]
["Címek összesen",{"$f":"SUM(B12:B55)","v":237564},{"$f":"SUM(C12:C55)","v":64048},{"$f":"SUM(D10:D55)","v":102218},null,null,{"$f":"SUM(G12:G55)","v":83266},null,{"$f":"SUM(I13:I55)","v":31677},null,{"$f":"SUM(K12:K55)","v":518773}]

{"sheet":"Munka2","index":1,"n_rows":0,"n_cols":0,"rows_kept":0,"cut":false,"hidden":false,"merged":[]}

{"sheet":"Munka3","index":2,"n_rows":0,"n_cols":0,"rows_kept":0,"cut":false,"hidden":false,"merged":[]}